Workbook

Sheet Pasiūlymas
A1: Organizacija, kuriai teikiamas pasiūlymas: | C1: VŠĮ Kauno klinikinė ligoninė
B3: PASIŪLYMAS
B4: Instrumentai artroskopinėms, ortopedinėms traumatologinėms operacijoms
A6: Data: | B6: 2020.08.25
A7: Nr.: | B7: 825
A8: Vieta: | B8: Klaipėda
A10: Tiekėjo pavadinimas / Ūkio subjektų grupės nariai | C10: UAB OSTECA
A11: Tiekėjo kodas (-ai) | C11: 300871049
A12: Tiekėjo adresas (-ai) | C12: Danės g. 47, Klaipėda
A13: Tiekėjo PVM mokėtojo kodas (-ai) | C13: LT100003238211
A14: Tiekėjo / Ūkio subjektų grupės atsakingo partnerio sąskaitos numeris, banko pavadinimas ir banko kodas (-ai)
A15: Asmens atsakingo už pasiūlymą vardas, pavardė | C15: Odeta Raklevičienė
A16: Asmens atsakingo už pasiūlymą telefono numeris, el. pašto adresas | C16: 865211038; 846400002
A17: Tiekėjo / Ūkio subjektų grupės, laimėjimo atveju, pasirašančio sutartį asmens vardas, pavardė, pareigos | C17: Direktorius Arvydas Klovas
A18: Tiekėjo / Ūkio subjektų grupės, laimėjimo atveju, už sutarties vykdymą atsakingo asmens vardas, pavardė, telefono numeris, elektroninio pašto adresas | C18: Projektų vadovė Odeta Raklevičienė
A19: Tiekėjo / Ūkio subjektų grupės kolegialaus priežiūros organo (Stebėtojų tarybos) ir (ar) kolegialaus valdymo organo (Valdybos) narių sąrašas (jei sudaryta)
A22: Tiekėjo patvirtinimai:
A23: 1. Šiuo pasiūlymu pažymime, kad sutinkame su visomis pirkimo sąlygomis, nustatytomis: 1.1. viešojo pirkimo dokumentuose; 1.2. kituose pirkimo dokumentuose (jų paaiškinimuose, papildymuose). 2. Pasiūlymas galioja iki termino, nustatyto pirkimo dokumentuose.
A25: Tiekėjo siūloma kaina:
A26: * Tais atvejais, kai pagal galiojančius teisės aktus tiekėjui nereikia mokėti PVM, teikėjas privalo su pasiūlymu pateikti laisvos formos raštą dėl PVM netaikymo pagrindo.
A28: Nr. | B28: Pavadinimas | C28: Kiekis | D28: Mato vienetas | E28: Kaina be PVM, Eur | F28: Suma be PVM, Eur | G28: Siūlomi produktai ir jo parametrai, gamintojas, produkto kodas, katalogo psl. nuo nuoroda į siūlomą produktą | H28: Siūlomo produkto parametrai
A29: 1. | B29: INSTRUMENTAI KELIO KRYŽMINIŲ RAIŠČIŲ OPERACIJOMS
A30: 1.1. | B30: Blauzdiklio užpakalinių raiščių dešinės pusės alkūninis nukreipiklis | C30: 1 | D30: vnt | F30: =IF(ISBLANK(E30),"", PRODUCT(C30,E30)) -> 
A31: 1.1.1. | B31: Nukreipiklis, kurio pakrypimą galima valdyti ne siauresnėse ribose kaip nuo 50o iki 65o
A32: 1.1.2. | B32: Turi turėti lazerines arba lygiavertes atžymas ir dantuką distaliniame gale.
A33: 1.1.3. | B33: Distalinis galas turi būti ovalo formos, pilnaviduris.
A34: 1.1.4. | B34: Instrumentas skirtas įstatyti į nukreipiklio rankeną.
A35: 1.2. | B35: Blauzdiklio užpakalinių raiščių kairės pusės alkūninis nukreipiklis | C35: 1 | D35: vnt | F35: =IF(ISBLANK(E35),"", PRODUCT(C35,E35)) -> 
A36: 1.2.1. | B36: Nukreipiklis, kurio pakrypimą galima valdyti ne siauresnėse ribose kaip nuo 50o iki 65o
A37: 1.2.2. | B37: Turi turėti lazerines arba lygiavertes atžymas ir dantuką distaliniame gale.
A38: 1.2.3. | B38: Distalinis galas turi būti ovalo formos, pilnaviduris.
A39: 1.2.4. | B39: Instrumentas skirtas įstatyti į nukreipiklio rankeną.
A40: 1.3. | B40: Gręžimo nukreipiklio rankena | C40: 1 | D40: vnt | F40: =IF(ISBLANK(E40),"", PRODUCT(C40,E40)) -> 
A41: 1.3.1. | B41: Rankena, į kurią turi statytis alkūninis nukreipiklis ir gręžimo kaniulė, kurie prie rankenos turi tvirtintis fiksavimo mechanizmais.
A42: 1.4. | B42: Gręžimokaniulė nukreipikliui | C42: 1 | D42: vnt | F42: =IF(ISBLANK(E42),"", PRODUCT(C42,E42)) -> 
A43: 1.4.1. | B43: Kaniulė turi tikti nukreipiklio rankenai
A44: 1.4.2. | B44: Gale turėti dantukus
A45: 1.4.3. | B45: Tikti 3,5 mm (± 0,1) diametro grąžtams ir vieloms
A46: 1.4.4. | B46: Retrogradiniam gręžimui
A47: 1.5. | B47: Gręžimokaniulė nukreipikliui | C47: 1 | D47: vnt | F47: =IF(ISBLANK(E47),"", PRODUCT(C47,E47)) -> 
A48: 1.5.1. | B48: Kaniulė turi tikti nukreipiklio rankenai
A49: 1.5.2. | B49: Gale turėti dantukus
A50: 1.5.3. | B50: Tikti 2,4 mm (± 0,1) diametro grąžtams ir vieloms
A51: 1.6. | B51: Gręžimokaniulė nukreipikliui | C51: 1 | D51: vnt | F51: =IF(ISBLANK(E51),"", PRODUCT(C51,E51)) -> 
A52: 1.6.1. | B52: Kaniulė turi tikti nukreipiklio rankenai
A53: 1.6.2. | B53: Gale turėti dantukus
A54: 1.6.3. | B54: Tikti 3,0 mm (± 0,1) diametro grąžtams ir vieloms
A55: 1.7. | B55: Gręžimokaniulė nukreipikliui | C55: 1 | D55: vnt | F55: =IF(ISBLANK(E55),"", PRODUCT(C55,E55)) -> 
A56: 1.7.1. | B56: Kaniulė turi tikti nukreipiklio rankenai
A57: 1.7.2. | B57: Gale turėti dantukus
A58: 1.7.3. | B58: Tikti 3,5 mm (± 0,1) diametro grąžtams ir vieloms
A59: 1.8. | B59: Gręžimo nukreipiklis skirtas menisko šaknies plyšimams | C59: 1 | D59: vnt | F59: =IF(ISBLANK(E59),"", PRODUCT(C59,E59)) -> 
A60: 1.8.1. | B60: Nukreipiklis, kurio pakrypimą galima valdyti ne siauresnėse ribose kaip nuo 70o iki 100o
A61: 1.8.2. | B61: Turi turėti lazerines arba lygiavertes atžymas.
A62: 1.8.3. | B62: Instrumentas skirtas įstatyti į nukreipiklio rankeną.
A63: 1.9. | B63: Gręžimo nukreipiklis skirtas menisko šaknies plyšimams | C63: 1 | D63: vnt | F63: =IF(ISBLANK(E63),"", PRODUCT(C63,E63)) -> 
A64: 1.9.1. | B64: Tiesus
A65: 1.9.2. | B65: Turi turėti lazerines arba lygiavertes atžymas ir dantuką distaliniame gale.
A66: 1.10. | B66: Instrumentas minkštųjų audinių paėmimui (striperis) | C66: 2 | D66: vnt | F66: =IF(ISBLANK(E66),"", PRODUCT(C66,E66)) -> 
A67: 1.10.1. | B67: 5 mm (± 0,2) vidinio diametro
A68: 1.10.2. | B68: ≥ 300 mm darbinio ilgio
A69: 1.10.3. | B69: Atviru galu
A70: 1.10.4. | B70: Sugraduotas kas 5 mm iki ≥ 200 mm
A71: 1.11. | B71: Chondrinis kirtiklis | C71: 1 | D71: vnt | F71: =IF(ISBLANK(E71),"", PRODUCT(C71,E71)) -> 
A72: 1.11.1. | B72: Mažas chondrinis kirtiklis, darbinė dalis lenkta 20o (± 5o)
A73: 1.12. | B73: Kaltukas tunelio grioveliui | C73: 2 | D73: vnt | F73: =IF(ISBLANK(E73),"", PRODUCT(C73,E73)) -> 
A74: 1.12.1. | B74: Kaltukas skirtas transplantanto kanalo praplatinimui
A75: 1.13. | B75: Kanaliuotas atroskopinis grąžtas, 10,5 mm | C75: 2 | D75: vnt | F75: =IF(ISBLANK(E75),"", PRODUCT(C75,E75)) -> 
A76: 1.13.1. | B76: Kanaliuotas grąžtas 10,5 mm kanalui
A77: 1.13.2. | B77: Sugraduotas kas 5 mm ne mažiau nei iki 115 mm.
A78: 1.14. | B78: Kanaliuotas atroskopinis grąžtas, 7 mm | C78: 2 | D78: vnt | F78: =IF(ISBLANK(E78),"", PRODUCT(C78,E78)) -> 
A79: 1.14.1. | B79: Kanaliuotas grąžtas 7 mm kanalui
A80: 1.14.2. | B80: Sugraduotas kas 5 mm ne mažiau nei iki 115 mm.
A81: 1.15. | B81: Kanaliuotas atroskopinis grąžtas, 7,5 mm | C81: 2 | D81: vnt | F81: =IF(ISBLANK(E81),"", PRODUCT(C81,E81)) -> 
A82: 1.15.1. | B82: Kanaliuotas grąžtas 7,5 mm kanalui
A83: 1.15.2. | B83: Sugraduotas kas 5 mm ne mažiau nei iki 115 mm.
A84: 1.16. | B84: Kanaliuotas atroskopinis grąžtas, 8 mm | C84: 2 | D84: vnt | F84: =IF(ISBLANK(E84),"", PRODUCT(C84,E84)) -> 
A85: 1.16.1. | B85: Kanaliuotas grąžtas 8 mm kanalui
A86: 1.16.2. | B86: Sugraduotas kas 5 mm ne mažiau nei iki 115 mm.
A87: 1.17. | B87: Kanaliuotas atroskopinis grąžtas, 8,5 mm | C87: 2 | D87: vnt | F87: =IF(ISBLANK(E87),"", PRODUCT(C87,E87)) -> 
A88: 1.17.1. | B88: Kanaliuotas grąžtas 8,5 mm kanalui
A89: 1.17.2. | B89: Sugraduotas kas 5 mm ne mažiau nei iki 115 mm.
A90: 1.18. | B90: Kanaliuotas atroskopinis grąžtas, 9 mm | C90: 2 | D90: vnt | F90: =IF(ISBLANK(E90),"", PRODUCT(C90,E90)) -> 
A91: 1.18.1. | B91: Kanaliuotas grąžtas 9 mm kanalui
A92: 1.18.2. | B92: Sugraduotas kas 5 mm ne mažiau nei iki 115 mm.
A93: 1.19. | B93: Kanaliuotas atroskopinis grąžtas, 9,5 mm | C93: 2 | D93: vnt | F93: =IF(ISBLANK(E93),"", PRODUCT(C93,E93)) -> 
A94: 1.19.1. | B94: Kanaliuotas grąžtas 9,5 mm kanalui
A95: 1.19.2. | B95: Sugraduotas kas 5 mm ne mažiau nei iki 115 mm.
A96: 1.20. | B96: PKR transportalinis nukreipiklis šlaunikauliui | C96: 2 | D96: vnt | F96: =IF(ISBLANK(E96),"", PRODUCT(C96,E96)) -> 
A97: 1.20.1. | B97: Nukreipiklis skirtas vielos/grąžto įvedimui į šlaunikaulį
A98: 1.20.2. | B98: 6 mm (± 0,1) vidinio diametro
A99: 1.20.3. | B99: Ofsetinis
A100: 1.20.4. | B100: Su gradacija iki ≥ 100 mm
A101: 1.21. | B101: PKR transportalinis nukreipiklis šlaunikauliui | C101: 2 | D101: vnt | F101: =IF(ISBLANK(E101),"", PRODUCT(C101,E101)) -> 
A102: 1.21.1. | B102: Nukreipiklis skirtas vielos/grąžto įvedimui į šlaunikaulį
A103: 1.21.2. | B103: 7 mm (± 0,1) vidinio diametro
A104: 1.21.3. | B104: Ofsetinis
A105: 1.21.4. | B105: Su gradacija iki ≥ 100 mm
A106: 1.22. | B106: PKR žymens blauzdikaulio alkūninis nukreipiklis | C106: 2 | D106: vnt | F106: =IF(ISBLANK(E106),"", PRODUCT(C106,E106)) -> 
A107: 1.22.1. | B107: Nukreipiklis, kurio pakrypimą galima valdyti ne siauresnėse ribose kaip nuo 50o iki 75o
A108: 1.22.2. | B108: Turi turėti lazerines arba lygiavertes atžymas ir dantuką distaliniame gale.
A109: 1.22.3. | B109: Instrumentas skirtas įstatyti į nukreipiklio rankeną.
A110: 1.23. | B110: Siuvimo instrumentas meniskams | C110: 2 | D110: vnt | F110: =IF(ISBLANK(E110),"", PRODUCT(C110,E110)) -> 
A111: 1.23.1. | B111: Daukartinio naudojimo instrumentas skirtas kelio meniskui siūti, vienu įvedimu, nenaudojant papildomų priemonių, suimantis audinį ir jį ištraukiantis, nepaleisdamas siūlo viso proceso metu
A112: 1.23.2. | B112: Instrumento galiukas 5o (± 1o) lenktas į viršų, žemo profilio, ne daugiau nei 3,2 mm aukščio ir ne daugiau nei 4,5 mm pločio.
A113: 1.23.3. | B113: Darbinės dalies ilgis ne daugiau 12,6 mm, užrakinamas, su siūlo prispaudimo mechanizmu.
A114: 1.23.4. | B114: Ne daugiau nei dviejų valdymo rankenų - viena adatai, kita čiupikliui
A115: 1.23.5. | B115: Instrumentas tinkamas darbui su 2-0, 0 dydžio bei juostiniais siūlais.
A116: 1.23.6. | B116: Komplekte su 5 vnt. vienkartinių, sterilių nitinolinių arba lygiaverčių adatų su išpjova šone instrumento išbandymui.
A117: 1.24. | B117: Transplantanto laikiklis | C117: 1 | D117: vnt | F117: =IF(ISBLANK(E117),"", PRODUCT(C117,E117)) -> 
A118: 1.24.1. | B118: Tvirtinamas pasirinktinai slankiojančiame blokelyje arba stacionariame blokelyje (būtinos abi galimybės).
A119: 1.24.2. | B119: Tinkamas tvirtinti pasirinktinai transplantato endosagą arba siūlą be mazgo (būtinos abi galimybės).
A120: 1.25. | B120: Šlaunikaulio užpakalinių raiščių alkūninis nukreipiklis | C120: 1 | D120: vnt | F120: =IF(ISBLANK(E120),"", PRODUCT(C120,E120)) -> 
A121: 1.25.1. | B121: Nukreipiklis, kurio pakrypimą galima valdyti ne siauresnėse ribose kaip nuo 45o iki 75o
A122: 1.25.2. | B122: Turi turėti lazerines arba lygiavertes atžymas ir dantuką distaliniame gale.
A123: 1.25.3. | B123: Distalinis galas turi būti ovalo formos, pilnaviduris.
A124: 1.25.4. | B124: Instrumentas skirtas įstatyti į nukreipiklio rankeną.
A125: 1.26. | B125: PKR raiščių rekonstrukcijai skirtų instrumentų sterilizavimo ir laikymo dėžė | C125: 2 | D125: vnt | F125: =IF(ISBLANK(E125),"", PRODUCT(C125,E125)) -> 
A126: 1.26.1. | B126: Su laikikliais PKR rekonstrukcijos instrumentams
A127: 1.27. | B127: Transplantanto laikiklis-ištempiklis su tempimo jėgos matuokliu | C127: 1 | D127: vnt | F127: =IF(ISBLANK(E127),"", PRODUCT(C127,E127)) -> 
A128: 1.27.1. | B128: Tvirtinamas pasirinktinai slankiojančiame blokelyje arba stacionariame blokelyje (būtinos abi galimybės).
A129: 1.27.2. | B129: Tinkamas tvirtinti pasirinktinai transplantato endosagą arba siūlą be mazgo (būtinos abi galimybės).
A130: 1.27.3. | B130: Su tempimo matuokliu
A131: 1.28. | B131: Transplantato ruošimo lenta | C131: 1 | D131: vnt | F131: =IF(ISBLANK(E131),"", PRODUCT(C131,E131)) -> 
A132: 1.28.1. | B132: Dviejų transplantato ruošimo vietų, kurių kiekviena susideda iš stacionaraus (fiksuotos padėties) ir paslankaus (slankiojančio išilginiu lentos bėgeliu) blokelių, skirtų transplantato laikiklių tvirtinimui
A133: 1.28.2. | B133: Su gerai matoma skale nuo 0 iki 30 cm (ne trumpesne) skirta ruošiamo trasplantato ilgiui matuoti
A134: 1.28.3. | B134: Su nuimamos konstrukcijos (keičiama) transplantato pjaustymo lentele bei atskira pjaustomo transplantato ilgio matavimo skale nuo 0 iki 33 cm (ne trumpesne).
A135: 1.29. | B135: Transplantato storio ir ilgio nustatymo blokelis | C135: 2 | D135: vnt | F135: =IF(ISBLANK(E135),"", PRODUCT(C135,E135)) -> 
A136: 1.29.1. | B136: Matavimo priemonė su lygiagrečiomis įpjovomis bei ertmėmis, skirta matuoti tranplantato diametrus nuo 4,5 mm iki 12,0 mm, didėjant kas 0,5 mm (matavimo ribos ne siauresnės už nurodytas) bei ilgį iki ≥ 180 mm
A137: 1.30. | B137: Tranplantatų ruošimo sistemos laikymo ir sterilizavimo konteineris | C137: 1 | D137: vnt | F137: =IF(ISBLANK(E137),"", PRODUCT(C137,E137)) -> 
A138: 1.30.1. | B138: Su laikikliais transplantato ruošimo lentai ir jos priedams
A139: 1.31. | B139: Kandiklis artroskopinėms operacijoms "punch" tipo | C139: 6 | D139: vnt | F139: =IF(ISBLANK(E139),"", PRODUCT(C139,E139)) -> 
A140: 1.31.1. | B140: Artroskopinis minkštujų audinių kandiklis
A141: 1.31.2. | B141: Instrumento diametras 3,4 mm (± 0,15 mm)
A142: 1.31.3. | B142: Instrumentas tiesaus profilio, o darbinės dalies žiotys lenktos į viršų 15o (±1o)
A143: 1.31.4. | B143: Dabinės dalies iškandimo plotas turi būti ne mažesnis nei 3,5 mm;
A144: 1.31.5. | B144: Instrumento rankena ergonomiška, su dviem vieno piršto kilpomis.
A145: 1.32. | B145: Audinių suėmėjas | C145: 2 | D145: vnt | F145: =IF(ISBLANK(E145),"", PRODUCT(C145,E145)) -> 
A146: 1.32.1. | B146: Minkštųjų audinių suėmėjas smailėjančia darbine dalimi
A147: 1.32.2. | B147: Darbinės dalies sukandimo galas dantytas, stiebas 3,4 mm (± 0,1 mm) diametro, tiesus.
A148: 1.32.3. | B148: Darbinė rankena ergonomiška su dviem vieno pišto kilpomis, užsirakinama.
A149: 1.33. | B149: Artroskopinės žirklės siūlų nukirpimui | C149: 2 | D149: vnt | F149: =IF(ISBLANK(E149),"", PRODUCT(C149,E149)) -> 
A150: 1.33.1. | B150: Instrumento stiebo skersmuo 3,4 mm (± 0,1 mm), tiesus
A151: 1.33.2. | B151: Darbinė dalis tiesi
A152: 1.33.3. | B152: Darbinė rankena su dviem vieno pišto kilpomis
A153: 1.33.4. | B153: Darbinės dalies galas tiesus.
E154: Suma be PVM | F154: =IF((COUNT(C30:C153)<>COUNT(F30:F153)),"", SUM(F30:F153)) ->  | G154: =IF((COUNT(C30:C153)<>COUNT(F30:F153)),"Neužpildytos visų objektų kainos", "") -> Neužpildytos visų objektų kainos
E155: PVM suma
E156: Suma su PVM | F156: =IF(ISBLANK(F155), "", SUM(F154:F155)) -> 
A158: 2. | B158: INSTRUMENTAI ĮVAIRIOMS ARTROSKOPINĖMS, ORTOPEDINĖMS IR TRAUMATOLOGINĮMS OPERACIJOMS
A159: 2.1. | B159: Skalperio kotelis | C159: 10 | D159: vnt. | E159: 6 | F159: =IF(ISBLANK(E159),"", PRODUCT(C159,E159)) -> 60 | G159: gamintojas PRO-MED (Vokietija) ref. Nr. 12.0103; psl. 1
A160: 2.1.1. | B160: Nr.3 arba lygiavertis | H160: nr. 3
A161: 2.2. | B161: Skalperio kotelis | C161: 20 | D161: vnt. | E161: 11 | F161: =IF(ISBLANK(E161),"", PRODUCT(C161,E161)) -> 220 | G161: gamintojas PRO-MED (Vokietija) ref. Nr.12.0193; psl. 2
A162: 2.2.1. | B162: Nr.3 arba lygiavertis | H162: nr. 3
A163: 2.2.2. | B163: Darbinė dalis su įpjovomis arba lygiavertis | H163: darbinė dalis su įpjovomis
A164: 2.3. | B164: Skalperio kotelis | C164: 20 | D164: vnt. | E164: 6 | F164: =IF(ISBLANK(E164),"", PRODUCT(C164,E164)) -> 120 | G164: gamintojas PRO-MED (Vokietija) ref. Nr.12.0101; psl. 1
A165: 2.3.1. | B165: Nr.3 arba lygiavertis | H165: nr. 3
A166: 2.3.2. | B166: Darbinė dalis sugraduota milimetrais arba lygiavertis | H166: darbinė dalis sugraduota milimetrais
A167: 2.4. | B167: Chirurginis peilis | C167: 5 | D167: vnt. | E167: 85 | F167: =IF(ISBLANK(E167),"", PRODUCT(C167,E167)) -> 425 | G167: gamintojas PRO-MED (Vokietija) ref. Nr.12.0520; psl. 3
A168: 2.4.1. | B168: Liston tipo arba lygiavertis | H168: Liston tipo
A169: 2.4.2. | B169: Ilgis 20 cm (± 0,5 cm) | H169: ilgis 20 cm
A170: 2.5. | B170: Medicininis pincetas | C170: 10 | D170: vnt. | E170: 7 | F170: =IF(ISBLANK(E170),"", PRODUCT(C170,E170)) -> 70 | G170: gamintojas PRO-MED (Vokietija) ref. Nr.14.0123; psl. 4
A171: 2.5.1. | B171: Tiesus, ilgis 14,5 cm (± 0,5 cm) | H171: tiesus,ilgis 14,5 cm
A172: 2.6. | B172: Chirurginis pincetas | C172: 10 | D172: vnt. | E172: 8 | F172: =IF(ISBLANK(E172),"", PRODUCT(C172,E172)) -> 80 | G172: gamintojas PRO-MED (Vokietija) ref. Nr.14.0623; psl. 5
A173: 2.6.1. | B173: Ilgis 14,5 cm, su priekyje dviem dantukais (± 0,5 cm) | H173: ilgis 14,5 cm, su 2 dantukais priekyje
A174: 2.7. | B174: Minkštųjų audinių pincetas | C174: 5 | D174: vnt. | E174: 13 | F174: =IF(ISBLANK(E174),"", PRODUCT(C174,E174)) -> 65 | G174: gamintojas PRO-MED (Vokietija) ref. Nr.14.0624; psl. 5
A175: 2.7.1. | B175: Ilgis 15 cm, su priekyje dviem dantukais (± 0,5 cm) | H175: ilgis 15 cm, su priekyje 2 dantukais
A176: 2.8. | B176: Minkštųjų audinių pincetas | C176: 15 | D176: vnt. | E176: 8 | F176: =IF(ISBLANK(E176),"", PRODUCT(C176,E176)) -> 120 | G176: gamintojas PRO-MED (Vokietija) ref. Nr.14.0040; psl. 6
A177: 2.8.1. | B177: Adson tipo arba lygiavertis | H177: Adson tipo
A178: 2.8.2. | B178: Ilgis 12 cm (± 0,5 cm) | H178: ilgis 12 cm
A179: 2.9. | B179: Pincetas | C179: 15 | D179: vnt. | E179: 10 | F179: =IF(ISBLANK(E179),"", PRODUCT(C179,E179)) -> 150 | G179: gamintojas PRO-MED (Vokietija) ref. Nr.14.0540; psl. 7
A180: 2.9.1. | B180: Adson tipo arba lygiavertis | H180: Adson tipo
A181: 2.9.2. | B181: Ilgis 12 cm, su priekyje dviem dantukais (± 0,5 cm) | H181: Ilgis 12 cm, su priekyje 2 dantukais
A182: 2.10. | B182: Pincetas | C182: 15 | D182: vnt. | E182: 26 | F182: =IF(ISBLANK(E182),"", PRODUCT(C182,E182)) -> 390 | G182: gamintojas PRO-MED (Vokietija) ref. Nr.14.0821, psl.8
A183: 2.10.1. | B183: Gerald tipo arba lygiavertis | H183: Gerald tipo
A184: 2.10.2. | B184: Ilgis 18 cm lenktas (± 0,5 cm) | H184: Ilgis 18 cm, lenktas
A185: 2.11. | B185: Pincetas | C185: 15 | D185: vnt. | E185: 25 | F185: =IF(ISBLANK(E185),"", PRODUCT(C185,E185)) -> 375 | G185: gamintojas PRO-MED (Vokietija) ref. Nr.14.0820; psl. 11
A186: 2.11.1. | B186: Gerald tipo arba lygiavertis | H186: Gerald tipo
A187: 2.11.2. | B187: Ilgis 17 cm, su priekyje dviem dantukais, tiesus (± 0,5 cm) | H187: Ilgis 18 cm, tiesus
A188: 2.12. | B188: Laikiklis | C188: 20 | D188: vnt. | E188: 14 | F188: =IF(ISBLANK(E188),"", PRODUCT(C188,E188)) -> 280 | G188: gamintojas PRO-MED (Vokietija) ref. Nr.15.0120; psl. 9
A189: 2.12.1. | B189: Halsted-Mosquito tipo arba lygiavertis | H189: Halsted-Mosquito tipo
A190: 2.12.2. | B190: Ilgis 12,5 cm, tiesus (± 0,5 cm) | H190: ilgis 12,5 cm, tiesus
A191: 2.13. | B191: Laikiklis | C191: 20 | D191: vnt. | E191: 15 | F191: =IF(ISBLANK(E191),"", PRODUCT(C191,E191)) -> 300 | G191: gamintojas PRO-MED (Vokietija) ref. Nr.15.0121; psl. 9
A192: 2.13.1. | B192: Halsted-Mosquito tipo arba lygiavertis | H192: Halsted-Mosquito tipo
A193: 2.13.2. | B193: Ilgis 12,5 cm, lenktas (± 1 cm) | H193: Ilgis 12,5 cm, lenktas
A194: 2.14. | B194: Žnyplės | C194: 25 | D194: vnt. | E194: 14 | F194: =IF(ISBLANK(E194),"", PRODUCT(C194,E194)) -> 350 | G194: gamintojas PRO-MED (Vokietija) ref. Nr.15.0201; psl. 10
A195: 2.14.1. | B195: Kelly Artery tipo arba lygiaverčios | H195: Kelly Artery tipo
A196: 2.14.2. | B196: Ilgis 14 cm, lenktas (± 0,5 cm) | H196: Ilgis 14 cm, lenktas
A197: 2.15. | B197: Žnyplės | C197: 5 | D197: vnt. | E197: 17 | F197: =IF(ISBLANK(E197),"", PRODUCT(C197,E197)) -> 85 | G197: gamintojas PRO-MED (Vokietija) ref. Nr.15.0251; psl. 11
A198: 2.15.1. | B198: Crile-Rankin tipo arba lygiaverčios | H198: Crile-Rankin
A199: 2.15.2. | B199: Ilgis 16 cm, lenktas (± 0,5 cm) | H199: ilgis 16 cm, lenktas
A200: 2.16. | B200: Žnyplės | C200: 50 | D200: vnt. | E200: 26 | F200: =IF(ISBLANK(E200),"", PRODUCT(C200,E200)) -> 1300 | G200: gamintojas PRO-MED (Vokietija) ref. Nr.15.0625; psl. 12
A201: 2.16.1. | B201: Rochester Ochsner tipo arba lygiaverčios | H201: Rochester Ochsner
A202: 2.16.2. | B202: Ilgis 20 cm, lenktos su priekyje dviem dantukais 1x2 (± 0,5 cm) | H202: ilgis 20 cm, lenktos priekyje su dantukais 1x2
A203: 2.17. | B203: Žnyplės | C203: 10 | D203: vnt. | E203: 23 | F203: =IF(ISBLANK(E203),"", PRODUCT(C203,E203)) -> 230 | G203: gamintojas PRO-MED (Vokietija) ref. Nr.15.0770; psl. 13
A204: 2.17.1. | B204: Gemini Artery & Ligature tipo arba lygiaverčios | H204: Gemini arterijų ir ligatūros
A205: 2.17.2. | B205: Ilgis 13 cm (± 0,5 cm) | H205: ilgis 13 cm
A206: 2.18. | B206: Žnyplės | C206: 50 | D206: vnt. | E206: 14 | F206: =IF(ISBLANK(E206),"", PRODUCT(C206,E206)) -> 700 | G206: gamintojas PRO-MED (Vokietija) ref. Nr.15.0120; psl. 9
A207: 2.18.1. | B207: Mosquito Artery tipo arba lygiaverčios | H207: Mosquito arterijų spaustukas
A208: 2.18.2. | B208: Ilgis 12 cm (± 0,5 cm) tiesios | H208: ilgis 12 cm
... 332 more rows

Sheet Subtiekėjai
A2: Sutarties vykdymui numatome pasitelkti šiuos subtiekėjus / subteikėjus / subrangovus:
A4: Pavadinimas | C4: Kodas, adresas | F4: Perduodama veikla | I4: Perduodamos veiklos dalis nuo visos pirkimo sutarties
A11: Pildyti tuomet, jei pirkimo sutarties vykdymui bus pasitelkti subtiekėjai (subteikėjai). Jeigu tiekėjas nenurodo subtiekėjų (subteikėjų), laikoma, kad vykdant pirkimo sutartį jų nebus pasitelkiama.
A13: Kartu su pasiūlymu pateikiami šie dokumentai:
A15: Nr. | B15: Dokumento pavadinimas | H15: Dokumentas yra konfidencialus? Taip/Ne
A16: 1. | B16: Katalogas | H16: Taip
A17: 2. | B17: Gamintojų dokumentai | H17: Taip
A18: 3. | B18: Jungtinė pažyma | H18: Taip
A19: 4. | B19: Kvalifikaciniai dokumentai | H19: Taip
A20: 5. | B20: EBVPD | H20: Taip
A22: Pasiūlyme nurodyta Prekės kaina, išskyrus jos sudedamąsias dalis, subtiekėjai, taip pat kita informacija, kuri teisės aktų nustatyta tvarka turi būti skelbiama arba kitokiu būdu viešai prieinama visuomenei, nėra laikoma konfidencialia informacija. Konfidencialią informaciją sudaro, visų pirma, komercinė (gamybinė) paslaptis ir konfidencialieji pasiūlymų aspektai. Informacija, kurią viešai skelbti įpareigoja Lietuvos Respublikos įstatymai, negali būti tiekėjo nurodoma kaip konfidenciali, todėl, tiekėjui nurodžius tokią informaciją kaip konfidencialią, perkančioji organizacija turi teisę ją skelbti. Jei tiekėjas nenurodo konfidencialios informacijos, laikoma, kad konfidencialios informacijos tiekėjo pasiūlyme nėra. Vadovaujantis Informacijos viešinimo Centrinėje viešųjų pirkimų informacinėje sistemoje tvarkos aprašu, patvirtintu Viešųjų pirkimų tarnybos direktoriaus 2017 m. birželio 19 d. įsakymu Nr. 1S-91 „Dėl Informacijos viešinimo Centrinėje viešųjų pirkimų informacinėje sistemoje tvarkos aprašo patvirtinimo“, perkančioji organizacija laimėjusio dalyvio pasiūlymą, išskyrus informaciją, kurią tiekėjas nurodė kaip konfidencialią, paskelbs CVP IS.
A24: Pasiūlymo galiojimo užtikrinimui pateikiame (jei taikoma):
A26: (Nurodyti užtikrinimo būdą, dydį, dokumentus)
A29: Tiekėjo arba jo įgalioto asmens pareigų pavadinimas: | E29: Projektų vadovė
A32: Pasirašančio asmens vardas ir pavardė: | E32: Odeta Raklevičienė
A100: 4390 2020-07-23 13:39:41
